fUST/lending_fUST_20251020
["ID","MTS","AMOUNT","RATE_DAILY","PERIOD"]
[391888539,1760955039433,-256.031148,0.00033925,30]
[391888541,1760955039443,-256.031148,0.00033925,30]
[391888543,1760955039453,-151.0,0.00033925,30]
[391888545,1760955039463,-159.10792,0.00033925,30]
[391888547,1760955039472,-161.844852,0.00033925,30]
[391888549,1760955039481,-161.844852,0.00033925,30]
[391888551,1760955039491,-161.844852,0.00033925,30]
[391888553,1760955039500,-161.844852,0.00033925,30]
[391888555,1760955039509,-151.0,0.00033925,30]
[391888556,1760955039518,-151.0,0.00033925,30]
[391888568,1760955039624,-151.0,0.00033925,30]
[391888570,1760955039634,-151.0,0.00033925,30]
[391888572,1760955039644,-151.0,0.00033925,30]
[391888574,1760955039653,-180.969693,0.00033925,30]
[391888576,1760955039663,-180.969693,0.00033925,30]
[391888577,1760955039672,-180.969693,0.00033925,30]
[391888578,1760955039681,-180.969693,0.00033925,30]
[391888579,1760955039690,-151.0,0.00033949,30]
[391888580,1760955039700,-151.0,0.00033949,30]
[391888581,1760955039709,-152.094476,0.00033949,30]
[391888582,1760955039718,-151.0,0.00033949,2]
[391888583,1760955039728,-151.0,0.00033949,30]
[391888584,1760955039737,-151.0,0.00033949,30]
[391888585,1760955039746,-151.0,0.00033949,30]
[391888586,1760955039756,-151.0,0.00033949,30]
[391888587,1760955039765,-151.0,0.00033949,30]
[391888588,1760955039774,-151.0,0.00033949,30]
[391888589,1760955039783,-799.886058,0.00033949,30]
[391888590,1760955039792,-151.0,0.00033949,30]
[391888591,1760955039801,-151.0,0.00033949,30]
[391888592,1760955039810,-151.0,0.00033949,30]
[391888593,1760955039819,-799.886058,0.00033949,30]
[391888594,1760955039832,-151.0,0.00033949,30]
[391888595,1760955039841,-799.886058,0.00033949,30]
[391888596,1760955039850,-799.886058,0.00033949,30]
[391888597,1760955039860,-151.0,0.00033949,30]
[391888598,1760955039869,-151.0,0.00033949,30]
[391888599,1760955039878,-151.0,0.00033949,30]
[391888600,1760955039886,-211.958132,0.00033949,30]
[391888601,1760955039896,-151.0,0.00033949,30]
[391888602,1760955039904,-211.958132,0.00033949,30]
[391888603,1760955039913,-211.958132,0.00033949,30]
[391888604,1760955039922,-211.958132,0.00033949,30]
[391888605,1760955039931,-151.0,0.00033949,30]
[391888606,1760955039940,-151.0,0.00033949,30]
[391888607,1760955039949,-151.611291,0.00033949,2]
[391888608,1760955039958,-151.0,0.00033949,30]
[391888609,1760955039967,-219.803885,0.00033949,30]
[391888610,1760955039976,-156.002361,0.00033949,30]
[391888611,1760955039985,-219.803885,0.00033949,30]
[391888612,1760955039994,-823.86234,0.00033949,30]
[391888613,1760955040003,-219.803885,0.00033949,30]
[391888614,1760955040013,-151.0,0.00033949,30]
[391888615,1760955040022,-823.86234,0.00033949,30]
[391888616,1760955040031,-219.803885,0.00033949,30]
[391888617,1760955040040,-151.0,0.00033949,30]
[391888618,1760955040049,-823.86234,0.00033949,30]
[391888619,1760955040058,-151.0,0.00033949,30]
[391888620,1760955040068,-823.86234,0.00033949,30]
[391888621,1760955040077,-151.0,0.00033949,30]
[391888622,1760955040086,-151.0,0.00033949,30]
[391888623,1760955040095,-151.0,0.00033949,30]
[391888624,1760955040104,-403.889832,0.00033949,15]
[391888625,1760955040113,-403.889832,0.00033949,15]
[391888626,1760955040122,-1059.156503,0.00033949,30]
[391888627,1760955040131,-403.889832,0.00033949,15]
[391888628,1760955040141,-1059.156503,0.00033949,30]
[391888629,1760955040150,-1059.156503,0.00033949,30]
[391888630,1760955040159,-403.889832,0.00033949,15]
[391888631,1760955040168,-1059.156503,0.00033949,30]
[391888632,1760955040177,-151.0,0.00033949,30]
[391888633,1760955040186,-435.042453,0.00033949,30]
[391888634,1760955040195,-1242.191618,0.00033949,30]
[391888635,1760955040204,-435.042453,0.00033949,30]
[391888636,1760955040214,-1242.191618,0.00033949,30]
[391888637,1760955040224,-435.042453,0.00033949,30]
[391888638,1760955040233,-1242.191618,0.00033949,30]
[391888639,1760955040242,-1324.65458,0.00033949,30]
[391888640,1760955040251,-435.042453,0.00033949,30]
[391888641,1760955040260,-1242.191618,0.00033949,30]
[391888642,1760955040270,-1324.65458,0.00033949,30]
[391888643,1760955040279,-151.0,0.00033949,30]
[391888644,1760955040288,-152.094428,0.00033949,30]
[391888645,1760955040296,-1324.65458,0.00033949,30]
[391888646,1760955040306,-151.0,0.00033949,30]
[391888647,1760955040315,-1324.65458,0.00033949,30]
[391888648,1760955040325,-151.0,0.00033949,30]
[391888649,1760955040334,-447.232063,0.00033949,30]
[391888650,1760955040343,-447.232063,0.00033949,30]
[391888651,1760955040352,-151.0,0.00033949,30]
[391888652,1760955040361,-447.232063,0.00033949,30]
[391888653,1760955040370,-151.0,0.00033949,30]
[391888654,1760955040379,-447.232063,0.00033949,30]
[391888655,1760955040388,-151.0,0.00033949,30]
[391888656,1760955040396,-158.796021,0.00033949,30]
[391888657,1760955040405,-151.0,0.00033949,30]
[391888658,1760955040414,-151.0,0.00033949,30]
[391888659,1760955040423,-151.0,0.00033949,30]
[391888660,1760955040433,-151.0,0.00033949,30]
[391888661,1760955040442,-151.0,0.00033949,30]
[391888662,1760955040450,-151.0,0.00033949,30]
[391888663,1760955040459,-151.0,0.00033949,30]
[391888664,1760955040468,-151.0,0.00033949,30]
[391888665,1760955040478,-151.0,0.00033949,30]
[391888666,1760955040487,-163.487828,0.00033949,30]
[391888667,1760955040496,-428.579089,0.00033949,30]
[391888668,1760955040505,-151.0,0.00033949,30]
[391888669,1760955040514,-153.705598,0.00033949,30]
[391888670,1760955040523,-428.579089,0.00033949,30]
[391888671,1760955040532,-153.705598,0.00033949,30]
[391888672,1760955040541,-428.579089,0.00033949,30]
[391888673,1760955040551,-183.026705,0.00033949,30]
[391888674,1760955040559,-153.705598,0.00033949,30]
[391888675,1760955040568,-428.579089,0.00033949,30]
[391888676,1760955040578,-153.705598,0.00033949,30]
[391888677,1760955040587,-151.0,0.00033949,30]
[391888678,1760955040597,-151.0,0.00033949,30]
[391888679,1760955040607,-173.196781,0.00033949,30]
[391888680,1760955040617,-151.0,0.00033949,30]
[391888681,1760955040627,-173.196781,0.00033949,30]
[391888682,1760955040637,-3015.182543,0.00033949,30]
[391888683,1760955040647,-151.0,0.00033949,30]
[391888684,1760955040656,-173.196781,0.00033949,30]
[391888685,1760955040665,-2245857.9021,0.00033949,30]
[391888686,1760955040676,-150.0,0.00033949,30]
[391888687,1760955040685,-252.277079,0.00033949,10]
[391888688,1760955040695,-500.0,0.00033973,5]
[391888689,1760955040704,-502.53663489,0.00033973,5]
[391888690,1760955040714,-500.0,0.00033973,2]
[391888691,1760955040723,-349.11471724,0.00033973,5]
[391888692,1760955040732,-500.0,0.00033973,5]
[391888693,1760955040741,-500.0,0.00033973,5]
[391888694,1760955040751,-500.0,0.00033973,5]
[391888695,1760955040760,-21768.18,0.00034,14]
[391888696,1760955040769,-262.396347,0.00034,30]
[391888697,1760955040778,-242.353648,0.00034,30]
[391888698,1760955040788,-402.9601108,0.00034,30]
[391888699,1760955040797,-402.9601108,0.00034,10]
[391888700,1760955040808,-262.396347,0.00034045,20]
[391888701,1760955040818,-242.353648,0.00034045,20]
[391888702,1760955040831,-510.0,0.00034081,2]
[391888703,1760955040840,-1432.24399238,0.00034136,2]
[391888704,1760955040850,-262.396347,0.00034178,15]
[391888705,1760955040859,-242.353648,0.00034178,15]
[391888706,1760955040870,-500.0,0.00034199,30]
[391888707,1760955040879,-177.24960773,0.0003423,120]
[391888708,1760955040889,-2999.0,0.00034246,120]
[391888709,1760955040900,-607.02076465,0.00034368,5]
[391888710,1760955040909,-1152.0,0.00034419,2]
[391888711,1760955040918,-1432.24399238,0.00034439,2]
[391888712,1760955040927,-500.0,0.00034473,30]
[391888713,1760955040936,-1124.78465503,0.00034521,2]
[391888714,1760955040945,-500.0,0.00034521,5]
[391888715,1760955040954,-262.396347,0.00034544,30]
[391888716,1760955041057,-242.353648,0.00034544,30]
[391888717,1760955041066,-4412.75,0.000346,14]
[391888718,1760955041075,-800.0,0.00034664,2]
[391888719,1760955041084,-800.0,0.00034708,2]
[391888720,1760955041094,-1432.24399238,0.00034726,2]
[391888721,1760955041103,-500.0,0.00034747,30]
[391888722,1760955041112,-1000.0,0.000348,14]
[391888723,1760955041121,-532.82715471,0.000349,120]
[391888724,1760955041131,-795.18534559,0.000349,120]
[391888725,1760955041140,-1248.77973885,0.000349,120]
[391888726,1760955041149,-2999.0,0.00034931,120]
[391888727,1760955041160,-151.0,0.00034932,30]
[391888728,1760955041169,-151.0,0.00034932,30]
[391888729,1760955041179,-151.37473815,0.00034932,30]
[391888730,1760955041189,-500.0,0.00034932,30]
[391888731,1760955041198,-500.0,0.00034932,30]
[391888732,1760955041207,-151.0,0.00034932,30]
[391888733,1760955041217,-500.0,0.00034932,30]
[391888734,1760955041226,-500.0,0.00034932,30]
[391888735,1760955041236,-151.0,0.00034932,30]
[391888736,1760955041245,-500.0,0.00034932,30]
[391888737,1760955041255,-500.0,0.00034932,30]
[391888738,1760955041264,-151.0,0.00034932,30]
[391888739,1760955041273,-151.0,0.00034932,30]
[391888740,1760955041282,-151.0,0.00034932,30]
[391888741,1760955041291,-272.99309488,0.00034932,30]
[391888742,1760955041300,-7291.50058233,0.00034957,2]
[391888743,1760955041310,-1432.24399238,0.00034972,2]
[391888744,1760955041319,-151.0,0.00034987,30]
[391888745,1760955041329,-151.0,0.00034987,30]
[391888746,1760955041338,-500.0,0.00034987,30]
[391888747,1760955041347,-580.5971618,0.00034987,30]
[391888748,1760955041357,-151.0,0.00034987,30]
[391888749,1760955041365,-500.0,0.00034987,30]
[391888750,1760955041374,-500.0,0.00034987,30]
[391888751,1760955041383,-151.0,0.00034987,30]
[391888752,1760955041392,-500.0,0.00034987,30]
[391888753,1760955041401,-500.0,0.00034987,30]
[391888754,1760955041411,-151.0,0.00034987,30]
[391888755,1760955041420,-151.0,0.00034987,30]
[391888756,1760955041429,-151.0,0.00034987,30]
[391888757,1760955041438,-402.9601108,0.00035,30]
[391888758,1760955041447,-402.9601108,0.00035,10]
[391888759,1760955041456,-152.29305162,0.00035042,30]
[391888760,1760955041465,-151.56260228,0.00035042,30]
[391888761,1760955041474,-500.0,0.00035042,30]
[391888762,1760955041483,-151.0,0.00035042,30]
[391888763,1760955041492,-500.0,0.00035042,30]
[391888764,1760955041501,-500.0,0.00035042,30]
[391888765,1760955041510,-249.29810661,0.00035042,30]
[391888766,1760955041519,-500.0,0.00035042,30]
[391888767,1760955041528,-549.0298258,0.00035042,30]
[391888768,1760955041537,-151.0,0.00035042,30]
[391888769,1760955041546,-151.0,0.00035042,30]
[391888770,1760955041556,-152.24285867,0.00035042,30]
[391888771,1760955041566,-399.31577424,0.00035059,2]
[391888772,1760955041575,-262.396347,0.00035089,30]
[391888773,1760955041584,-242.353648,0.00035089,30]
[391888774,1760955041592,-500.0,0.00035096,30]
[391888775,1760955041601,-202.35749936,0.00035096,30]
[391888776,1760955041610,-500.0,0.00035096,30]
[391888777,1760955041620,-456.36142473,0.00035096,30]
[391888778,1760955041629,-500.0,0.00035096,30]
[391888779,1760955041638,-151.0,0.00035096,30]
[391888780,1760955041647,-273.86887614,0.00035096,30]
[391888781,1760955041659,-1432.24399238,0.00035145,2]
[391888782,1760955041679,-500.0,0.00035151,30]
[391888783,1760955041698,-500.0,0.00035151,30]
[391888784,1760955041716,-500.0,0.00035151,30]
[391888785,1760955041735,-152.66825656,0.00035151,30]
[391888786,1760955041752,-589.312562,0.0003516,120]
[391888787,1760955041771,-262.396347,0.00035173,20]
[391888788,1760955041786,-242.353648,0.00035173,20]
[391888789,1760955041802,-500.0,0.00035206,30]
[391888790,1760955041820,-524.91923794,0.00035206,30]
[391888791,1760955041842,-500.0,0.00035206,30]
[391888792,1760955041854,-1000.0,0.00035208,4]
[391888793,1760955041871,-411.0,0.00035237,2]
[391888794,1760955041886,-500.0,0.00035261,30]
[391888795,1760955041902,-500.0,0.00035261,30]
[391888796,1760955041914,-503.29527612,0.00035316,30]
[391888797,1760955041928,-500.0,0.00035316,30]
[391888798,1760955041943,-1432.24399238,0.00035382,2]
[391888799,1760955041958,-683.7,0.000354,3]
[391888800,1760955041974,-159.128,0.00035443,2]
[391888801,1760955041990,-213632.51486865,0.00035444,7]
[391888806,1760955042666,-20103.0,0.00035444,7]
[391888807,1760955042677,-1000.0,0.00035444,7]
[391888808,1760955042688,-21090.51710764,0.00035444,7]
[391888809,1760955042699,-1868.35163947,0.00035444,7]
[391888810,1760955042712,-375.07632858,0.00035444,7]
[391888811,1760955042723,-2080.31044061,0.00035444,7]
[391888812,1760955042734,-1239.51115704,0.00035444,7]
[391888813,1760955042745,-1152.68162522,0.00035444,7]
[391888814,1760955042757,-1236.95149689,0.00035444,7]
[391888815,1760955042767,-584.20647668,0.00035444,7]
[391888816,1760955042779,-1617.4791997,0.00035444,7]
[391888817,1760955042794,-3015.182543,0.00033949,30]
[391888818,1760955042802,-9533.00019117,0.00035444,7]
[391888819,1760955043237,-173.196781,0.00033949,30]
[391888820,1760955043246,-102.21000706,0.00033949,30]
[391888821,1760955044454,-3e-08,0.00033949,30]
[391888831,1760955122758,880.529539,0.00013699,2]
[391888832,1760955122980,880.529539,0.00020187,2]
[391888833,1760955133037,417.15472785,0.00024141,2]
[391888834,1760955320862,10000.0,0.00030137,120]
[391888835,1760955336522,10000.0,0.00030137,120]
[391888838,1760955377674,10000.0,0.00030137,120]
[391888839,1760955413283,3125.49,0.00030137,120]
[391888851,1760955621926,500.0,0.00030137,120]
[391888852,1760955777509,150.05747781,0.0001,2]
[391888855,1760955800246,417.15472785,0.00024141,2]
[391888859,1760955975618,150.0,0.00020193,2]
[391888860,1760955976056,150.0,0.00021154,2]
[391888861,1760955976778,150.0,0.00022116,2]
[391888862,1760955976908,150.0,0.00023077,2]
[391888863,1760955977366,21.5337888,0.00024039,2]
[391888864,1760955977390,128.4662112,0.00024039,2]
[391888866,1760955989926,153.71981836,0.00024,3]
[391888867,1760956042608,150.0,0.00020161,2]
[391888868,1760956059186,500.0,0.00033934,60]
[391888870,1760956069610,9567.82397044,0.00018,2]
[391888871,1760956069634,10000.01,0.00018,2]
[391888872,1760956069658,4263.30927384,0.00018,2]
[391888874,1760956085896,4888.68804171,0.000237,30]
[391888876,1760956091518,848.01268445,0.00019205,5]
[391888877,1760956091543,2237.65499844,0.00019205,5]
[391888878,1760956099361,2259.79958668,0.0002,30]
[391888879,1760956100770,274.15982911,0.00021,2]
[391888880,1760956101447,1008.06944875,0.00015,2]
[391888881,1760956107629,150.0,0.00020126,2]
[391888882,1760956108035,150.0,0.00021085,2]
[391888883,1760956108497,150.0,0.00022043,2]
[391888884,1760956108926,183.19,0.00023002,2]
[391888885,1760956109348,228.99,0.0002396,2]
[391888886,1760956115161,3358.14613702,0.000212,30]
[391888887,1760956115184,989.6297312,0.000212,30]
[391888888,1760956124251,9010.3802688,0.00024,30]
[391888889,1760956124274,595.20709239,0.00024,30]
[391888890,1760956125642,162.74044815,0.00024,30]
[391888892,1760956183834,150.0,0.0002022,2]
[391888893,1760956184265,279.47,0.00021182,2]
[391888894,1760956184692,419.2,0.00022145,2]
[391888895,1760956185579,558.93,0.00023108,2]
[391888896,1760956185640,698.66,0.00024071,2]
[391888923,1760956232409,-382.40266763,0.00024206,2]
[391888924,1760956232419,-174.81299216,0.00024561,2]
[391888925,1760956232429,-8651.03148667,0.0002465,2]
[391888926,1760956232438,-150.0,0.00024797,2]
[391888927,1760956232447,-300.0,0.00024988,2]
[391888928,1760956232457,-274.25,0.00024989,2]
[391888929,1760956232467,-838.4,0.00025034,2]
[391888930,1760956232477,-172.5,0.00025397,2]
[391888931,1760956232486,-195.0,0.00025997,2]
[391888932,1760956232495,-978.13,0.00025997,2]
[391888933,1760956232505,-1666.398039,0.00026,30]
[391888934,1760956232515,-50000.0,0.00026,2]
[391888935,1760956232524,-311.0,0.000263,2]
[391888936,1760956232538,-286.34629531,0.00026497,2]
[391888937,1760956232547,-800.0,0.00026596,2]
[391888938,1760956232558,-217.5,0.00026597,2]
[391888939,1760956232568,-880.529539,0.00026676,2]
[391888940,1760956232577,-500.0,0.000267,2]
[391888941,1760956232587,-500.0,0.000267,2]
[391888942,1760956232597,-1117.86,0.00026959,2]
[391888943,1760956232606,-7045.5,0.00027,2]
[391888944,1760956232616,-420.0,0.00027071,2]
[391888945,1760956232625,-240.0,0.00027197,2]
[391888946,1760956232754,-1000.0,0.00027248,2]
[391888947,1760956232767,-1000.0,0.00027248,2]
[391888948,1760956232776,-314.66338588,0.00027329,2]
[391888949,1760956232787,-198.6552585,0.0002739,2]
[391888950,1760956232796,-150.0,0.0002739,2]
[391888951,1760956232806,-160.0,0.000274,2]
[391888952,1760956232815,-168.89128206,0.00027444,2]
[391888953,1760956232824,-2620.28617563,0.000275,2]
[391888954,1760956232834,-1500.0,0.00027796,5]
[391888955,1760956232843,-1500.0,0.00027796,5]
[391888956,1760956232852,-1257.6,0.00027922,2]
[391888957,1760956232862,-172.27,0.00027935,18]
[391888958,1760956232871,-260.0,0.00027948,2]
[391888959,1760956232881,-298.34,0.0002799,10]
[391888960,1760956232890,-248.62,0.0002799,10]
[391888961,1760956232899,-15188.06332311,0.00028,2]
[391888962,1760956232908,-10338.71524354,0.00028,5]
[391888963,1760956232920,-11112.37797043,0.00028,4]
[391888964,1760956232929,-787.55736928,0.00028,2]
[391888965,1760956232938,-286.34629526,0.00028099,2]
[391888966,1760956232948,-2000.0,0.00028344,5]
[391888967,1760956232957,-2023.82627988,0.00028344,5]
[391888968,1760956232967,-500.0,0.00028473,5]
[391888969,1760956232976,-500.0,0.00028473,3]
[391888970,1760956232985,-360.0,0.00028496,2]
[391888971,1760956232995,-4101.78101381,0.000285,7]
[391888972,1760956233007,-817.68241253,0.000285,7]
[391888973,1760956233017,-21329.33539736,0.000285,7]
[391889000,1760956238145,-277.87775059,0.00026233,2]
[391889001,1760956238155,-617.58766427,0.00027999,2]
[391889003,1760956238164,-500.0,0.00027999,2]
[391889006,1760956238174,-533.47434423,0.00027999,2]
[391889007,1760956238183,-500.0,0.00027999,2]
[391889010,1760956238193,-500.0,0.00027999,2]
[391889011,1760956238203,-500.0,0.00027999,2]
[391889013,1760956238212,-574.72054382,0.00027999,2]
[391889015,1760956238223,-3411.5799786,0.000285,7]
[391889017,1760956238234,-928.98345371,0.000285,7]
[391889018,1760956238249,-1703.45085993,0.000285,7]
[391889019,1760956238261,-435.0,0.000285,7]
[391889020,1760956238273,-104533.54639617,0.000285,7]
[391889021,1760956238283,-13653.39,0.000285,7]
[391889022,1760956238292,-500.0,0.000285,7]
[391889023,1760956238302,-1045.88019387,0.00028549,2]
[391889024,1760956238312,-500.0,0.00028667,2]
[391889025,1760956238322,-500.0,0.00028667,5]
[391889026,1760956238332,-502.53663489,0.00028667,5]
[391889027,1760956238341,-500.0,0.00028667,5]
[391889028,1760956238351,-349.11471724,0.00028667,5]
[391889029,1760956238360,-500.0,0.00028667,5]
[391889030,1760956238370,-500.0,0.00028667,5]
[391889031,1760956238379,-559.4015749,0.00028713,2]
[391889032,1760956238389,-989.12601571,0.0002876,2]
[391889033,1760956238399,-4000.0,0.0002876,5]
[391889034,1760956238409,-250.31971598,0.0002876,2]
[391889035,1760956238419,-2318.4149331,0.0002876,2]
[391889036,1760956238428,-500.0,0.00028774,7]
[391889037,1760956238438,-169.83253239,0.000288,7]
[391889038,1760956238447,-1397.33,0.00028885,2]
[391889039,1760956238457,-2500.0,0.00028892,5]
[391889040,1760956238466,-881.98862225,0.00029,2]
[391889041,1760956238476,-502.44369659,0.00029,7]
[391889042,1760956238486,-276.0,0.00029018,2]
[391889043,1760956238495,-1000.0,0.00029021,5]
[391889044,1760956238505,-500.0,0.00029036,30]
[391889045,1760956238513,-199.0,0.00029036,7]
[391889046,1760956238523,-260.0,0.00029044,2]
[391889047,1760956238532,-1124.78465503,0.00029215,2]
[391889048,1760956238542,-500.0,0.00029215,5]
[391889049,1760956238551,-199.0,0.0002931,8]
[391889050,1760956238562,-587.0,0.00029327,2]
[391889051,1760956238571,-316.3390877,0.00029388,2]
[391889052,1760956238581,-17932.2595308,0.00029424,2]
[391889053,1760956238591,-5000.0,0.00029434,2]
[391889054,1760956238600,-3000.0,0.0002944,5]
[391889055,1760956238610,-220.412932,0.00029508,2]
[391889056,1760956238620,-203.577065,0.00029508,2]
[391889057,1760956238629,-289.36838989,0.00029559,2]
[391889058,1760956238639,-71589.98523032,0.0002956,2]
[391889059,1760956238649,-1024.87285329,0.00029568,5]
[391889060,1760956238659,-500.0,0.00029573,5]
[391889061,1760956238669,-522.05539574,0.00029573,5]
[391889062,1760956238679,-199.0,0.00029584,9]
[391889063,1760956238688,-151.0,0.00029604,2]
[391889064,1760956238698,-151.9182964,0.00029604,2]
[391889065,1760956238707,-1000.0,0.000297,2]
[391889066,1760956238717,-1000.0,0.000297,2]
[391889067,1760956238726,-1000.0,0.000297,2]
[391889068,1760956238736,-1000.0,0.000297,2]
[391889069,1760956238745,-1000.0,0.000297,2]
[391889070,1760956238754,-1000.0,0.000297,2]
[391889071,1760956238764,-1000.0,0.000297,2]
[391889072,1760956238774,-151.0,0.000297,2]
[391889073,1760956238784,-151.0,0.000297,2]
[391889074,1760956238793,-151.37473815,0.000297,2]
[391889075,1760956238803,-500.0,0.000297,2]
[391889076,1760956238814,-500.0,0.000297,2]
[391889077,1760956238824,-151.0,0.000297,2]
[391889078,1760956238834,-500.0,0.000297,2]
[391889079,1760956238845,-500.0,0.000297,2]
[391889080,1760956238856,-151.0,0.000297,2]
[391889081,1760956238866,-500.0,0.000297,2]
[391889082,1760956238876,-500.0,0.000297,2]
[391889083,1760956238886,-151.0,0.000297,2]
[391889084,1760956238896,-151.0,0.000297,2]
[391889085,1760956238905,-151.0,0.000297,2]
[391889086,1760956238915,-272.99309488,0.000297,2]
[391889087,1760956238925,-500.0,0.000297,2]
[391889088,1760956238935,-151.0,0.000297,2]
[391889089,1760956238945,-500.0,0.000297,2]
[391889090,1760956238956,-500.0,0.000297,2]
[391889091,1760956238966,-286.34629526,0.000297,2]
[391889092,1760956238976,-151.0,0.00029755,2]
[391889093,1760956238985,-151.0,0.00029755,2]
[391889094,1760956238996,-500.0,0.00029755,2]
[391889095,1760956239005,-580.5971618,0.00029755,2]
[391889096,1760956239014,-151.0,0.00029755,2]
[391889097,1760956239024,-500.0,0.00029755,2]
[391889098,1760956239034,-500.0,0.00029755,2]
[391889099,1760956239044,-151.0,0.00029755,2]
[391889100,1760956239170,-500.0,0.00029755,2]
[391889101,1760956239181,-500.0,0.00029755,2]
[391889102,1760956239191,-151.0,0.00029755,2]
[391889103,1760956239201,-151.0,0.00029755,2]
[391889104,1760956239211,-151.0,0.00029755,2]
[391889105,1760956239220,-500.0,0.00029755,2]
[391889106,1760956239230,-151.0,0.00029755,2]
[391889107,1760956239243,-500.0,0.00029755,2]
[391889108,1760956239253,-500.0,0.00029755,2]
[391889109,1760956239263,-152.29305162,0.0002981,2]
[391889110,1760956239274,-151.56260228,0.0002981,2]
[391889111,1760956239284,-500.0,0.0002981,2]
[391889112,1760956239294,-151.0,0.0002981,2]
[391889113,1760956239304,-500.0,0.0002981,2]
[391889114,1760956239317,-500.0,0.0002981,2]
[391889115,1760956239327,-249.29810661,0.0002981,2]
[391889116,1760956239336,-500.0,0.0002981,2]
[391889117,1760956239346,-549.0298258,0.0002981,2]
[391889118,1760956239355,-151.0,0.0002981,2]
[391889119,1760956239365,-151.0,0.0002981,2]
[391889120,1760956239374,-152.24285867,0.0002981,2]
[391889121,1760956239384,-466.26568242,0.0002981,2]
[391889122,1760956239394,-151.0,0.0002981,2]
[391889123,1760956239403,-500.0,0.0002981,2]
[391889124,1760956239413,-500.0,0.0002981,2]
[391889125,1760956239423,-500.0,0.00029864,2]
[391889126,1760956239433,-202.35749936,0.00029864,2]
[391889127,1760956239442,-500.0,0.00029864,2]
[391889128,1760956239451,-456.36142473,0.00029864,2]
[391889129,1760956239461,-500.0,0.00029864,2]
[391889130,1760956239470,-151.0,0.00029864,2]
[391889131,1760956239479,-273.86887614,0.00029864,2]
[391889132,1760956239489,-153.01691422,0.00029864,2]
[391889133,1760956239498,-500.0,0.00029864,2]
[391889134,1760956239508,-500.0,0.00029864,2]
[391889135,1760956239517,-1045.88019386,0.00029871,2]
[391889136,1760956239527,-13653.39,0.000299,7]
[391889137,1760956239536,-500.0,0.00029919,2]
[391889138,1760956239546,-500.0,0.00029919,2]
[391889139,1760956239555,-152.66825656,0.00029919,2]
[391889140,1760956239566,-500.0,0.00029919,2]
[391889141,1760956239575,-500.0,0.00029919,2]
[391889142,1760956239585,-524.91923794,0.00029974,2]
[391889143,1760956239595,-500.0,0.00029974,2]
[391889144,1760956239604,-500.0,0.00029974,2]
[391889145,1760956239613,-430.0,0.00029974,2]
[391889146,1760956239623,-3500.0,0.00029988,5]
[391889147,1760956239633,-220.412932,0.0003,15]
[391889148,1760956239643,-203.577065,0.0003,15]
[391889149,1760956239653,-350.84173689,0.0003,4]
[391889150,1760956239663,-1292.77429664,0.0003,2]
[391889151,1760956239672,-7293.09724818,0.0003,2]
[391889152,1760956239682,-27601.60965041,0.0003,3]
[391889153,1760956239691,-1189.0,0.0003,45]
[391889154,1760956239701,-3425.67918834,0.0003,2]
[391889155,1760956239711,-525.67314963,0.0003,2]
[391889156,1760956239721,-785.81490251,0.0003,60]
[391889157,1760956239731,-294.23482915,0.0003,60]